Cogmind - Beta 16.1 @@@ ROGUE MODE // 2026.03.04 @ 22:42:48 Player: parasect Result: Destroyed by S-10 Pest with Light Assault Rifle Performance ------------- Evolutions (0) 0 Regions Visited (2) 400 Robots Destroyed (10) 50 Value Destroyed (226) 226 Prototype IDs (0) 0 Alien Tech Used (0) 0 Bonus (0) 0 TOTAL SCORE: 676 Bonus ------- None Cogmind --------- Core Integrity 0/250 Matter 300/300 Energy 100/100 System Corruption 0% Temperature Cool (0) Movement Core (350) Ox6 Location -10/Mines Parts ------- > --- POWER (1) -------- (None) > --- PROPULSION (2) --- (None) > --- UTILITY (2) ------ Large Storage Unit > --- WEAPON (2) ------- (None) > --- INVENTORY (15) --- Ion Engine Light Treads Light Treads Aluminum Leg Aluminum Leg Heat Sink Medium Matter Pod (100) Seismic Detector Mining Laser Peak State ------------ > --- POWER ------------ Light Ion Engine > --- PROPULSION ------- Aluminum Leg Aluminum Leg > --- UTILITY ---------- Small Storage Unit Seismic Detector > --- WEAPON ----------- Small Laser Light Assault Rifle > --- INVENTORY -------- Ion Engine Light Treads Light Treads Compact Wheel Compact Wheel EM Pulse Gun [Rating: 7] Favorites ----------- Power Light Ion Engine Engine Light Ion Engine Propulsion Aluminum Leg Leg Aluminum Leg Utility Large Storage Unit Device Seismic Detector Storage Large Storage Unit Weapon Small Laser Energy Gun Small Laser Ballistic Gun Light Assault Rifle Build | -11 -10 -10 ------- Run | Yrd Mat Min Slots Evolved . | . . . Power . | . . . Propulsion . | . . . Utility . | . . . Weapon . | . . . Parts Attached 5 | 2 3 . Power . | . . . Engine . | . . . Core . | . . . Reactor . | . . . Propulsion . | . . . Treads . | . . . Leg . | . . . Wheel . | . . . Hover . | . . . Flight . | . . . Utility 3 | 1 2 . Device 2 | 1 1 . Storage 1 | . 1 . Processor . | . . . Hackware . | . . . Protection . | . . . Artifact . | . . . Weapon 2 | 1 1 . Energy Gun 1 | . 1 . Energy Cannon . | . . . Ballistic Gun 1 | 1 . . Ballistic Cannon . | . . . Launcher . | . . . Special Weapon . | . . . Impact Weapon . | . . . Slashing Weapon . | . . . Piercing Weapon . | . . . Special Melee Weapon . | . . . Unidentified Prototypes . | . . . Parts Lost 7 | . 3 4 Power 1 | . 1 . Propulsion 2 | . . 2 Utility 1 | . . 1 Weapon 3 | . 2 1 Highest Loss Streak 5 | . 2 5 To Critical Strikes . | . . . Average Backups 6 | 6 6 9 Power 1 | 1 1 1 Propulsion 3 | 4 3 4 Utility 1 | . 1 3 Weapon . | 1 . 1 Tool/Special . | . . . Unused Backups 20 | 9 1 10 Power 3 | 1 1 1 Propulsion 10 | 4 . 6 Utility 2 | 1 . 1 Weapon 5 | 3 . 2 Tool/Special . | . . . Average Slot Usage (%) 89 | . 95 53 Engine 11 | . 13 . Leg 26 | . 28 19 Device 11 | . 11 11 Storage 14 | . 14 14 Energy Gun 15 | . 16 8 Ballistic Gun 8 | . 10 . Peak Build Rating 7 | 7 7 5 Average Rating 6 | 6 6 3 On Entrance 6 | 6 7 5 Avg Prop Armor Cover (%) . | . . . Naked Turns . | . . . Heaviest Build 26 | 11 26 22 Greatest Support 20 | 20 20 20 Greatest Overweight (x) 6 | . 1 6 Average Overweight (x) . | . . 1 Largest Inventory Capacity 15 | 8 15 15 Average Capacity 12 | 8 12 15 Most Carried 9 | 6 9 9 Average Carried 6 | 5 6 9 Final Capacity 15 | 8 15 15 Final Carried 9 | 3 9 9 Class Distribution -------------------- 100% | Mutant Dominant Class ---------------- Mutant | -10/Materials Mutant | -10/Mines Resources | -11 -10 -10 ----------- Run | Yrd Mat Min Matter Collected 376 | 223 153 . Remotely . | . . . Salvage Created 341 | 106 235 . Parts 21 | 6 15 . Haulers Intercepted . | . . . Recyclers Shooed 1 | . 1 . Parts Field Recycled . | . . . Retrieved Matter . | . . . Parts Self-Destructed . | . . . Prevented . | . . . Parts Restored . | . . . Kills | -11 -10 -10 ------- Run | Yrd Mat Min Combat Hostiles Destroyed 8 | . 8 . Guns 8 | . 8 . Classes Destroyed 4 | 2 2 . Tunneler 1 | 1 . . Recycler 1 | 1 . . Swarmer 3 | . 3 . Grunt 5 | . 5 . Best Kill Streak 3 | 1 3 . Combat Bots Only 3 | . 3 . Max Kills in Single Turn 1 | 1 1 . Gunslinging . | . . . Exploded . | . . . Melee . | . . . Uniques/NPCs Destroyed . | . . . Combat | -11 -10 -10 -------- Run | Yrd Mat Min Hostile Shots Fired 104 | . 59 45 Missed 21 | . 11 10 Hits 83 | . 48 35 Projectile 83 | . 48 35 Damage Taken 820 | . 527 293 Core 253 | . 133 120 Absorbed by Shields . | . . . Core Remaining (%) 100 | 100 . . Volleys Fired 44 | 6 37 1 Largest 2 | 2 2 1 Hottest 80 | 80 80 40 Shots Fired 85 | 12 72 1 Gun 85 | 12 72 1 Cannon . | . . . Launcher . | . . . Special . | . . . Kinetic 24 | 3 21 . Thermal 58 | 6 51 1 Explosive . | . . . Electromagnetic 3 | 3 . . Robot Hit Streak 10 | 3 10 . Robot Miss Streak 4 | 1 4 1 Penetration Max . | . . . Secondary Targets 2 | . 2 . Max Gunslinging Chain 1 | . 1 . Shots Hit Robots 58 | 8 50 . Core Hits 20 | 3 17 . Critical Kills . | . . . Critical Parts Destroyed . | . . . Critical Strikes . | . . . Melee Attacks . | . . . Impact . | . . . Slashing . | . . . Piercing . | . . . Sneak Attacks . | . . . Combat Hostiles . | . . . Follow-up Attacks . | . . . Damage Inflicted 622 | 86 536 . Guns 622 | 86 536 . Cannons . | . . . Explosions . | . . . Melee . | . . . Ramming . | . . . Kinetic 134 | 25 109 . Thermal 448 | 21 427 . Explosive . | . . . Electromagnetic 40 | 40 . . Impact . | . . . Slashing . | . . . Piercing . | . . . Highest Corruption . | . . . Average Corruption . | . . . Corruption Purged . | . . . Corruption Blocked . | . . . Overload Shots . | . . . Overflow Damage . | . . . Projectiles . | . . . Explosions . | . . . Melee . | . . . Knockbacks . | . . . Impact . | . . . Kinetic . | . . . Secondary . | . . . Self-Inflicted Damage . | . . . Shots . | . . . Rammed . | . . . Targets Rammed . | . . . Kicked . | . . . Crushed . | . . . Highest Temperature 54 | 54 40 . Average Temperature 20 | 25 19 . Received Heat Transfer 198 | . 198 . Siege Activations . | . . . Martial Activations . | . . . Shielding Activations . | . . . Robots Disrupted . | . . . Combat Hostiles . | . . . Robots Corrupted . | . . . Combat Hostiles . | . . . Parts Fried . | . . . Impact Corruptions . | . . . Robots Melted . | . . . Combat Hostiles . | . . . Parts Melted 1 | . 1 . Heat Transferred 975 | 50 925 . Parts Sabotaged . | . . . Parts Stolen . | . . . Parts Stripped . | . . . Power Chain Reactions . | . . . Alert | -11 -10 -10 ------- Run | Yrd Mat Min Maximum Alert Level . | . . . Low Security (%) 100 | 100 100 100 Level 1 . | . . . Level 2 . | . . . Level 3 . | . . . Level 4 . | . . . Level 5 . | . . . High Security . | . . . Max Security . | . . . Peak Influence 106 | 5 106 15 Initial 15 | . . 15 Average 45 | 2 59 7 Influence Increases 256 | 10 231 15 Destroy 0b10 Robot/C 160 | . 160 . Destroy 0b10 Robot/NC 10 | 10 . . Destroy Leader 30 | . 30 . Successful Hack 11 | . 11 . Select Force Hacks 30 | . 30 . Lose Combat Pursuer 15 | . . 15 Influence Decreases 241 | 10 190 41 Entered New Map 26 | . . 26 Time Decay 175 | 10 160 5 Lost Part 40 | . 30 10 Squads Dispatched 1 | . 1 . Investigation 1 | . 1 . Extermination . | . . . Reinforcement . | . . . Assault . | . . . Garrison . | . . . Intercept . | . . . Searches Triggered . | . . . Construction Impeded . | . . . Haulers Reinforced . | . . . Active Scanning Responses . | . . . Cargo Convoy Interrupts . | . . . Stealth | -11 -10 -10 --------- Run | Yrd Mat Min Distress Signals 1 | . 1 . Communications Jammed . | . . . Distress Signals . | . . . Times Spotted 15 | . 12 3 Peak Tracking Total 4 | . 4 3 Tactical Retreats 1 | . . 1 Traps | -11 -10 -10 ------- Run | Yrd Mat Min Traps Triggered . | . . . Indirectly . | . . . Trap Hack Attempts . | . . . Triggered . | . . . Disarmed . | . . . Reprogrammed . | . . . Reused . | . . . Traps Extracted . | . . . Installed . | . . . Triggered . | . . . Machines | -11 -10 -10 ---------- Run | Yrd Mat Min Machines Disabled . | . . . Max in Single Turn . | . . . Machines Repaired . | . . . Machines Dismantled . | . . . Machines Sabotaged . | . . . Overloaded Fab Kills . | . . . Hacking | -11 -10 -10 --------- Run | Yrd Mat Min Machines Accessed 3 | . 3 . Terminals 2 | . 2 . Fabricators . | . . . Repair Stations . | . . . Recycling Units 1 | . 1 . Scanalyzers . | . . . Garrison Access . | . . . Total Hacks 5 | . 5 . Successful 5 | . 5 . Failed . | . . . Catastrophic . | . . . Database Lockouts . | . . . Manual 5 | . 5 . Terminals 4 | . 4 . Fabricators . | . . . Repair Stations . | . . . Recycling Units 1 | . 1 . Scanalyzers . | . . . Garrison Access . | . . . Terminal Hacks 3 | . 3 . Part Schematic 1 | . 1 . Robot Analysis 2 | . 2 . Fabricator Hacks . | . . . Repair Station Hacks . | . . . Recycling Unit Hacks . | . . . Scanalyzer . | . . . Garrison Access Hacks . | . . . Unauthorized Hacks 2 | . 2 . Terminals 1 | . 1 . Botnet 1 | . 1 . Fabricators . | . . . Repair Stations . | . . . Recycling Units 1 | . 1 . Tunnel 1 | . 1 . Scanalyzers . | . . . Garrison Access . | . . . Data Cores Recovered . | . . . Used . | . . . Hacking Detections 1 | . 1 . Full Trace Events . | . . . Feedback Events . | . . . Feedback Blocked . | . . . Robot Schematics Acquired . | . . . Robots Built . | . . . Authchips . | . . . Time . | . . . Total Robot Build Rating . | . . . Part Schematics Acquired 1 | . 1 . Parts Built . | . . . Authchips . | . . . Time . | . . . Total Part Build Rating . | . . . Part Studies Acquired . | . . . Parts Repaired . | . . . Time . | . . . Parts Recycled . | . . . Recycled Matter . | . . . Retrieved Matter . | . . . Retrieved Components . | . . . Parts Scanalyzed . | . . . Part Schematics Acquired . | . . . Parts Damaged . | . . . Bothacking | -11 -10 -10 ------------ Run | Yrd Mat Min Used RIF Installer . | . . . Robots Hacked . | . . . Non-combat . | . . . Combat . | . . . Robot Hacks Applied . | . . . Relay Couplers Released . | . . . Fabnet Peak Effective % . | . . . Robots Rewired . | . . . Allies Hacked . | . . . Hacks Repelled . | . . . Allies | -11 -10 -10 -------- Run | Yrd Mat Min Total Allies . | . . . Largest Group . | . . . Highest-Rated Group . | . . . Highest-Rated Ally . | . . . Total Orders . | . . . Ally Attacks . | . . . Total Damage . | . . . Kills . | . . . Allies Corrupted . | . . . Allies Melted . | . . . Intel | -11 -10 -10 ------- Run | Yrd Mat Min Active Infowar (turns) 177 | 22 155 . Seismic 177 | 22 155 . Robot Analysis Total 2 | . 2 . Derelict Logs Recovered . | . . . Drone Launches . | . . . Drone Recoveries . | . . . Exploration | -11 -10 -10 ------------- Run | Yrd Mat Min Turns Passed 430 | 68 327 35 Spaces Moved 176 | 39 121 16 Core 1 | . . 1 Treads . | . . . Legs 175 | 39 121 15 Wheels . | . . . Hover . | . . . Flight . | . . . Fastest Speed 120 | 120 120 190 Average Speed 151 | 120 154 213 Slowest Speed 350 | 120 190 350 Overloaded Moves . | . . . Propulsion Burnouts . | . . . Robots Hopped . | . . . Potential Cave-ins . | . . . Cave-ins Triggered . | . . . Exploration Rate (%) 12 | 3 23 11 Regions Visited 2 Branch Regions 1 Pre-discovered Areas 1 | . 1 . Known Exits Taken . | . . . Unknown Exits Taken 2 | 1 1 . Scrap Searched . | . . . Spaces Dug . | . . . Terrain Destroyed . | . . . Melee . | . . . Projectile . | . . . AOE . | . . . Terrain Rammed . | . . . Walls Destroyed . | . . . Machines Disabled . | . . . Actions | -11 -10 -10 --------- Run | Yrd Mat Min Total 260 | 49 194 17 Wait 22 | . 22 . Move 174 | 38 120 16 Hop . | . . . Pick Up 7 | . 7 . Fast Attach 2 | 1 1 . Attach 2 | . 2 . Detach 2 | . 2 . Swap 3 | 1 2 . Drop 4 | 3 1 . Fire 44 | 6 37 1 Melee . | . . . Ram . | . . . Kick . | . . . Crush . | . . . Escape Stasis . | . . . Rewire . | . . . Trap . | . . . Miscellaneous . | . . . Route ------- -11/Scrapyard -10/Materials -10/Mines History --------- Turn | Location | Event 15 | -11/Scrapyard | Discovered new exit (range 3) 69 | -11/Scrapyard | Entered Materials 123 | -10/Materials | Discovered new exit (range 16) 302 | -10/Materials | Build established: Mutant 353 | -10/Materials | Core integrity fell below 50% 396 | -10/Materials | Entered Mines 417 | -10/Mines | Core integrity fell below 20% 431 | -10/Mines | Destroyed by S-10 Pest with Light Assault Rifle Last Messages --------------- 00333_ Acquired 42 matter. 00336_ Sml. Laser destroyed. 00354_ Lgt. Assault Rifle destroyed. 00355_ G-34 Mercenary destroyed. 00357_ Acquired 34 matter. 00359_ R-06 Scavenger collects Aluminum Leg. 00359_ K-01 Serf collects debris. 00361_ Acquired Heat Sink. 00362_ K-01 Serf collects debris. 00363_ R-06 Scavenger collects Aluminum Leg. 00364_ Acquired 38 matter. 00365_ K-01 Serf collects debris. 00388_ Lgt. Ion Engine destroyed. 00390_ K-01 Serf collects debris. LOCATION=UNKNOWN GOAL=ESCAPE 00411_ Sml. Laser destroyed. 00416_ Aluminum Leg destroyed. 00425_ Heat Sink destroyed. 00427_ Aluminum Leg destroyed. Map ----- +----------------------------------------------------+ | ?????????????????????????????????????????????????? | | ?????????????????????????????????????????????????? | | ?????????????????????????????????????????????????? | | ?????????????????????????????????????????????????? | | ?????????????????????????????????????????????????? | | ?????????????????????????????????????????????????? | | ?????????????????????????????????????????????????? | | ?????????????????????????????????????????????????? | | ?????????????????????????????????????????????????? | | ?????????????????????????????????????????????????? | | ?????????????????????????????????????????????????? | | ?????????????????????????????????????????????????? | | ?????????????????????????????????????????? #?????? | | ?????????????????????????????????????????? #???? ? | | ?????????????????????????????????????????? #??? # | | ??????????????????????????????####???????? #??# ? | | ?????????????????????????????? #???????? #?# #? | | ?????????????????????????????? #???????? ## #? | | ??????????????????????????????# #???????# #? | | ???????????? ????????????????# #??????# #?? | | ???????????? ??????????????# #?????## #?? | | ????????????? ????????????# #?????# ##? | | ???????????????# ??????????# #????## ## | | ????????????????# ###?????# #????# # | | ????????????????# ###### ###### # | | ?????????????????# @ s #? | | ?????????????????# s ###### #?? | | ?????????????????# #######????# #?? | | ????????????????# ### #??????????## #?? | | ????????????????##????## ##???????????## #?? | | ???????????????????????###??????????????## ##?? | | ??????????????????????????????????????????#####??? | | ?????????????????????????????????????????????????? | | | | | | | | | | | | | | | | | | | | | | | | | | | | | | | | | | | +----------------------------------------------------+ Best States ------------- Heat Dissipation 35 Energy Generation 10 Energy Capacity 125 Matter Stores 300 Matter Capacity 300 Sight Range 16 Terrain Scan Density 10 Evasion (%) 55 Item Schematics ----------------- Huge Storage Unit | -10/Materials | Hacked Robot Schematics ------------------ None Fabricated ------------ Nothing Repaired ---------- Nothing Studied --------- None Alien Tech Used ----------------- None Achievements -------------- None Challenges ------------ None Game ------ Seed AmuletChromaticMount Manual? 0 Play Time 00:04:10 Cumulative 148.9 hours Start 2026.03.04 @ 22:20:09 End 2026.03.04 @ 22:42:48 Sessions 2 Manual Loads 0 Difficulty Rogue Special Mode None Game No. 105 Rogue 104 Adventurer 0 Explorer 1 Win Type - Total 15 Types 11/0/2/1/0/0/0/1/0/0 Lore% 55 Gallery% 56 Achievement% 53 Wizard Run 0 Options --------- Layout 2 ASCII 0 Keyboard 1 Movement Numpad Keybinds 0 Fullscreen 2 Font 24/Terminus Map View 50x44 Zoom Use 0% Tactical HUD 1 Map Filters NONE Filters NONE Steam 1 RUN: 1950f093-c580-4334-a0a6-87049e268c10